bitfinex-derivatives/quotes_BTCF0:USTF0_20210108
["timestamp","ask_amount","ask_price","bid_price","bid_amount"]
[1610087887174,0.07074429,38458.0,38457.0,3.73121756]
[1610087887374,3.9124,38495.0,38457.0,3.73121756]
[1610087887573,0.69194463,38496.0,38457.0,3.73121756]
[1610087887574,0.69194463,38496.0,38457.0,0.23231756]
[1610087887775,0.69191426,38497.0,38473.0,2.968]
[1610087888176,0.69191426,38497.0,38473.0,3.07843]
[1610087888375,0.69192394,38498.0,38474.0,0.09594848]
[1610087888576,0.13632608,38494.0,38489.0,0.13632608]
[1610087888976,0.13632608,38494.0,38490.0,0.03187758]
[1610087889179,0.13632608,38494.0,38490.0,0.12118972]
[1610087889677,0.13632608,38494.0,38491.0,0.03218967]
[1610087891381,0.13632608,38494.0,38491.0,0.00031214]
[1610087891782,0.13632608,38494.0,38492.0,0.00031208]
[1610087892282,0.13632608,38494.0,38491.0,0.00031205]
[1610087892484,0.13632608,38494.0,38493.0,0.13663813]
[1610087892683,0.13632608,38494.0,38493.0,0.13632608]
[1610087893082,0.13632608,38494.0,38493.0,0.16850344]
[1610087897387,0.13632608,38494.0,38493.0,0.13663811]
[1610087898588,0.13632608,38494.0,38493.0,0.16849714]
[1610087898889,4.052,38529.0,38493.0,0.16849714]
[1610087899090,0.11748,38537.0,38493.0,0.16849714]
[1610087899288,0.11748,38537.0,38506.0,2.9568]
[1610087899489,0.68495028,38541.0,38506.0,3.05273]
[1610087899791,0.68432469,38544.0,38507.0,0.00031185]
[1610087900191,0.68425708,38549.0,38507.0,0.00031185]
[1610087900592,3.4921,38556.0,38507.0,0.00031185]
[1610087900593,0.68360543,38555.0,38536.0,0.13632608]
[1610087900794,0.68353469,38557.0,38536.0,0.24039608]
[1610087901294,0.68351579,38559.0,38537.0,0.00031176]
[1610087901493,0.68351579,38559.0,38536.0,0.24039608]
[1610087901692,0.68285274,38561.0,38536.0,0.10407]
[1610087901992,4.3362,38544.0,38536.0,0.10407]
[1610087902494,0.09943,38553.0,38536.0,0.10407]
[1610087902693,0.13632608,38537.0,38526.0,0.11026]
[1610087902993,3.13472608,38537.0,38526.0,0.11026]
[1610087904495,0.13632608,38537.0,38526.0,0.11026]
[1610087904694,0.13632608,38527.0,38526.0,0.11026]
[1610087907600,0.13632608,38527.0,38526.0,0.11057181]
[1610087907798,0.13632608,38527.0,38526.0,0.00031181]
[1610087908199,0.13632608,38527.0,38520.0,0.00031181]
[1610087908597,0.13632608,38521.0,38520.0,0.00031181]
[1610087909198,0.13632608,38521.0,38516.0,0.00031181]
[1610087909598,4.19602608,38521.0,38520.0,0.00031181]
[1610087909898,4.19602608,38521.0,38520.0,0.11978]
[1610087910100,4.19602608,38521.0,38520.0,0.12009184]
[1610087911404,0.13632608,38521.0,38520.0,0.12009184]
[1610087912707,0.13632608,38521.0,38520.0,0.25641792]
[1610087913106,0.13632608,38521.0,38520.0,0.28826362]
[1610087913307,0.13632608,38521.0,38520.0,0.15193754]
[1610087914908,3.6396,38537.0,38520.0,0.15193754]
[1610087915310,3.6396,38537.0,38521.0,0.03215426]
[1610087916609,0.13632608,38522.0,38521.0,0.03215426]
[1610087920211,4.42993,38553.0,38521.0,0.03215426]
[1610087920415,0.09943,38553.0,38521.0,3.73965426]
[1610087920612,3.51412,38562.0,38521.0,0.03215426]
[1610087920613,0.09222,38562.0,38521.0,0.03215426]
[1610087920814,0.2947,38569.0,38549.0,0.13632608]
[1610087921115,0.2947,38569.0,38550.0,0.03213766]
[1610087922313,0.2947,38569.0,38548.0,0.03213604]
[1610087922612,0.2947,38569.0,38551.0,0.03213594]
[1610087922816,0.2947,38569.0,38549.0,0.03213542]
[1610087923215,0.2947,38569.0,38548.0,0.03213536]
[1610087923416,0.2947,38569.0,38550.0,0.03213576]
[1610087923615,0.2947,38569.0,38549.0,0.03213588]
[1610087924016,0.2947,38569.0,38548.0,0.03213463]
[1610087924216,0.2947,38569.0,38550.0,0.03213421]
[1610087924415,0.2947,38569.0,38549.0,0.03213393]
[1610087924816,0.2947,38569.0,38561.0,0.13632608]
[1610087925017,0.2947,38569.0,38557.0,0.12141]
[1610087925217,0.2947,38569.0,38562.0,0.00031158]
[1610087925721,0.2947,38569.0,38563.0,0.00031158]
[1610087926121,0.2947,38569.0,38559.0,0.00031158]
[1610087926320,0.2947,38569.0,38557.0,0.12141]
[1610087926321,0.2947,38569.0,38564.0,0.00031158]
[1610087926521,0.2947,38569.0,38559.0,0.00031158]
[1610087926821,0.13632608,38565.0,38557.0,0.10541]
[1610087927021,0.13632608,38565.0,38560.0,0.00031158]
[1610087927421,0.13632608,38565.0,38558.0,0.03213205]
[1610087927821,0.13632608,38565.0,38559.0,0.00031158]
[1610087928022,0.13632608,38565.0,38561.0,0.00031158]
[1610087928224,0.13632608,38565.0,38558.0,0.03182047]
[1610087928628,0.13632608,38565.0,38558.0,0.03213203]
[1610087928924,0.13632608,38559.0,38557.0,0.08941]
[1610087930124,0.13632608,38559.0,38555.0,0.13632608]
[1610087930526,0.13632608,38559.0,38556.0,0.0321309]
[1610087930726,0.13632608,38559.0,38555.0,0.12832608]
[1610087931526,0.13632608,38559.0,38547.0,0.0783]
[1610087931726,2.972,38549.0,38520.0,3.85598]
[1610087932227,2.972,38549.0,38540.0,0.03213409]
[1610087932426,2.972,38549.0,38540.0,0.09293]
[1610087932627,2.972,38549.0,38541.0,0.03213819]
[1610087932829,0.13632608,38542.0,38541.0,0.03213819]
[1610087933928,0.63762608,38542.0,38541.0,0.03213819]
[1610087940537,0.63762608,38542.0,38532.0,0.10686]
[1610087940839,3.04342608,38533.0,38532.0,0.10686]
[1610087941237,3.04342608,38533.0,38532.0,0.03215108]
[1610087941837,3.04342608,38533.0,38520.0,0.11978]
[1610087941838,3.04342608,38533.0,38521.0,0.03215489]
[1610087942937,0.13632608,38522.0,38521.0,0.03215489]
[1610087943338,0.13632608,38522.0,38499.0,0.03216317]
[1610087943738,0.13632608,38522.0,38521.0,0.0321641]
[1610087944043,0.13632608,38522.0,38510.0,0.08956]
[1610087944239,4.49272608,38522.0,38521.0,0.03216602]
[1610087944440,4.49272608,38522.0,38511.0,0.03216602]
[1610087944740,4.49272608,38522.0,38521.0,0.00031907]
[1610087945040,4.3564,38522.0,38512.0,0.00031907]
[1610087945240,4.3564,38522.0,38511.0,0.03184695]
[1610087945241,4.3564,38522.0,38521.0,0.00031907]
[1610087945443,4.3564,38522.0,38511.0,0.03216602]
[1610087945843,4.3564,38522.0,38521.0,0.00031907]
[1610087946041,4.3564,38522.0,38510.0,0.08956]
[1610087946242,4.3564,38522.0,38521.0,0.00031905]
[1610087946442,4.3564,38522.0,38512.0,0.03184493]
[1610087946641,0.10999,38531.0,38511.0,0.03216383]
[1610087946842,0.13632608,38512.0,38511.0,0.03216383]
[1610087948144,3.7333,38529.0,38511.0,0.03216383]
[1610087948348,0.56496278,38537.0,38511.0,0.03216383]
[1610087948546,0.56526539,38539.0,38511.0,0.03216383]
[1610087948945,0.56520593,38542.0,38533.0,0.13632608]
[1610087949349,0.56545066,38545.0,38534.0,0.03214974]
[1610087949845,0.68059419,38552.0,38534.0,0.03214974]
[1610087949846,0.56544186,38549.0,38534.0,0.03214974]
[1610087950246,0.56540116,38552.0,38534.0,0.03214974]
[1610087950745,0.69101097,38555.0,38534.0,0.03214974]
[1610087950746,0.56564524,38555.0,38534.0,0.03214974]
[1610087950947,0.56564524,38555.0,38544.0,0.13632608]
[1610087951146,0.56561129,38558.0,38544.0,0.21665608]
[1610087951345,0.56561129,38558.0,38545.0,0.03213862]
[1610087952348,1.5,38558.0,38545.0,0.03213862]
[1610087952648,0.56612173,38554.0,38545.0,0.03213862]
[1610087952948,0.13632608,38546.0,38545.0,0.03213862]
[1610087953648,0.13632608,38546.0,38533.0,0.03214752]
[1610087953850,0.81043192,38546.0,38545.0,0.03214806]
[1610087954152,0.81043192,38546.0,38534.0,0.03215073]
[1610087954352,3.85623192,38546.0,38545.0,0.03215117]
[1610087954552,3.18212608,38546.0,38545.0,0.03215117]
[1610087954754,3.18212608,38546.0,38535.0,0.03215143]
[1610087955052,0.13632608,38536.0,38524.0,0.11967]
[1610087955251,0.13632608,38536.0,38525.0,0.03215123]
[1610087956555,0.5522,38535.0,38525.0,0.03215123]
[1610087956856,0.13632608,38526.0,38525.0,0.03215123]
[1610087957155,3.43102608,38526.0,38525.0,0.03215123]
[1610087958057,3.43102608,38526.0,38511.0,0.03215607]
[1610087958357,3.43102608,38526.0,38525.0,0.03215636]
[1610087958560,3.43102608,38526.0,38512.0,0.03215645]
[1610087958957,0.13632608,38513.0,38511.0,0.03215639]
[1610087959157,0.13632608,38513.0,38510.0,0.08956]
[1610087959158,0.13632608,38513.0,38510.0,0.07956]
[1610087959358,0.5672511,38530.0,38512.0,0.03215642]
[1610087959557,0.88265038,38542.0,38512.0,0.03215642]
[1610087959767,1.5838,40184.0,38511.0,0.03215491]
[1610087959768,0.78799164,38541.0,38511.0,0.03215491]
[1610087959959,0.78799164,38541.0,38509.0,0.13632608]
[1610087959960,0.5673981,38534.0,38509.0,0.13632608]
[1610087960160,0.5673981,38534.0,38512.0,0.0321516]
[1610087960360,4.1967,38536.0,38512.0,0.0321516]
[1610087960562,4.1967,38536.0,38510.0,0.03215069]
[1610087960762,4.1967,38536.0,38513.0,0.03215152]
[1610087960962,4.1967,38536.0,38532.0,0.13632608]
[1610087961663,4.1967,38536.0,38533.0,0.0321505]
[1610087961863,0.56735485,38542.0,38533.0,0.0321505]
[1610087962264,4.55463499,38543.0,38533.0,0.0321505]
[1610087962864,0.13632608,38534.0,38533.0,0.0321505]
[1610087963664,0.13632608,38534.0,38526.0,0.0321521]
[1610087963965,0.13632608,38534.0,38525.0,0.1096]
[1610087963966,3.6916,38531.0,38525.0,0.1096]
[1610087964165,3.6916,38531.0,38527.0,0.03215225]
[1610087964364,3.6916,38531.0,38525.0,0.1096]
[1610087964365,3.6916,38531.0,38526.0,0.03215235]
[1610087964767,3.6916,38531.0,38528.0,0.0321522]
[1610087964967,0.13632608,38529.0,38527.0,0.03215222]
[1610087965166,0.13632608,38529.0,38525.0,0.1096]
[1610087965367,0.13632608,38529.0,38528.0,0.00031892]
[1610087965568,0.13632608,38529.0,38528.0,0.03215178]
[1610087965768,0.56749363,38539.0,38526.0,0.03214997]
[1610087966069,0.5603,38539.0,38528.0,0.03214849]
[1610087966269,0.5603,38539.0,38527.0,0.03214709]
[1610087966474,0.5603,38539.0,38526.0,0.03214583]
[1610087966873,0.5603,38539.0,38533.0,0.13632608]
[1610087967271,0.5603,38539.0,38534.0,0.03214437]
[1610087968870,0.13632608,38535.0,38533.0,0.12032608]
[1610087969573,0.13632608,38535.0,38534.0,0.03214639]
[1610087970170,0.13632608,38535.0,38533.0,0.12032608]
[1610087970371,0.13632608,38535.0,38534.0,0.03214473]
[1610087970571,4.35082608,38535.0,38534.0,0.03214473]
[1610087970771,4.35082608,38535.0,38533.0,0.10432608]
[1610087972071,0.13632608,38535.0,38533.0,0.10432608]
[1610087972871,0.13632608,38535.0,38533.0,0.08832608]
[1610087973071,3.871,38534.0,38530.0,0.12683]
[1610087973471,3.871,38534.0,38513.0,0.06365353]
[1610087973672,3.871,38534.0,38531.0,0.03214649]
[1610087973971,3.871,38534.0,38526.0,0.11225]
[1610087974372,3.871,38534.0,38527.0,0.03214742]
[1610087974773,3.871,38534.0,38526.0,0.09625]
[1610087975071,0.13632608,38527.0,38526.0,0.09625]
[1610087975471,0.67852608,38527.0,38526.0,0.12839751]
[1610087975671,2.17852608,38527.0,38512.0,0.08131]
[1610087976071,1.63632608,38527.0,38507.0,0.15913808]
[1610087976271,1.63632608,38527.0,38513.0,0.03215312]
[1610087976572,1.63632608,38527.0,38508.0,0.03216071]
[1610087976573,3.9104,38514.0,38508.0,0.03216071]
[1610087976772,1.5,38513.0,38501.0,0.06847]
[1610087976976,3.53122608,38502.0,38501.0,0.06847]
[1610087977172,5.03122608,38502.0,38501.0,0.06847]
[1610087977573,5.03122608,38502.0,38501.0,0.0321765]
[1610087977877,7.77029511,38502.0,38501.0,0.0321765]
[1610087978074,7.77029511,38502.0,38463.0,0.09589598]
[1610087978273,4.37539511,38502.0,38501.0,0.03217905]
[1610087978474,3.8333,38475.0,38463.0,0.06371768]
[1610087978675,1.5,38474.0,38463.0,0.06371768]
[1610087978875,0.12419,38487.0,38438.0,0.12776943]
[1610087979076,4.0758,38462.0,38446.0,0.13632608]
[1610087979276,1.5,38481.0,38446.0,0.22296608]
[1610087979581,3.9417,38465.0,38447.0,0.03218706]
[1610087980580,0.09431,38479.0,38447.0,0.03218706]
[1610087980980,0.09431,38479.0,38456.0,0.13632608]
[1610087981580,0.09431,38479.0,38457.0,0.03218777]
[1610087982682,0.09431,38479.0,38455.0,0.03218867]
[1610087982983,0.13632608,38459.0,38456.0,0.03219306]
[1610087983181,4.29142608,38459.0,38456.0,0.03219306]
[1610087983384,4.29142608,38459.0,38455.0,0.03219249]
[1610087983683,4.29142608,38459.0,38457.0,0.03219331]
[1610087983884,4.29142608,38459.0,38456.0,0.03219439]
[1610087984085,4.29142608,38459.0,38427.0,4.0286]
[1610087984384,4.29142608,38459.0,38353.0,0.4684]
[1610087984385,0.13632608,38459.0,38457.0,0.00031942]
[1610087984585,4.1468,38458.0,38435.0,0.11846]
[1610087985184,0.13632608,38436.0,38435.0,0.11846]
[1610087985385,0.60452608,38436.0,38435.0,0.11846]
[1610087985584,0.60452608,38436.0,38415.0,0.13632608]
[1610087985784,0.60452608,38436.0,38435.0,0.00031949]
[1610087985987,0.60452608,38436.0,38425.0,0.10634]
[1610087986186,0.60452608,38436.0,38435.0,0.00031947]
[1610087986586,0.60452608,38436.0,38426.0,0.0322064]
[1610087986889,0.60452608,38436.0,38435.0,0.00031947]
[1610087987088,0.60452608,38436.0,38425.0,0.09134]
[1610087987291,0.60452608,38436.0,38435.0,0.00031947]
[1610087987588,0.60452608,38436.0,38426.0,0.00031947]
[1610087987787,0.60452608,38436.0,38435.0,0.00031947]
[1610087988288,0.60452608,38436.0,38426.0,0.00031947]
[1610087989088,0.13632608,38427.0,38426.0,0.00031947]
[1610087989892,0.13632608,38427.0,38425.0,0.09134]
[1610087990089,0.13632608,38427.0,38426.0,0.00031947]
[1610087990489,0.13632608,38427.0,38426.0,0.00063894]
[1610087990690,0.13632608,38427.0,38426.0,0.00095841]
[1610087991391,0.3002,38459.0,38426.0,0.00095841]
[1610087991689,0.3002,38459.0,38427.0,0.00031947]
[1610087992492,4.20002,38460.0,38426.0,0.03284151]
[1610087992891,4.20002,38460.0,38428.0,0.00031942]
[1610087993091,0.13632608,38440.0,38439.0,0.13632608]
[1610087993695,0.13632608,38440.0,38439.0,0.13664548]
[1610087995493,0.13632608,38440.0,38439.0,0.0003194]
[1610087995994,0.13632608,38440.0,38427.0,0.00031942]
[1610087996295,0.13632608,38440.0,38439.0,0.00031942]
[1610087996495,0.13632608,38440.0,38434.0,0.11229]
[1610087997095,3.093,38441.0,38435.0,0.00031947]
[1610087997295,0.08152,38460.0,38435.0,0.00031947]
[1610087997494,3.1314,38463.0,38435.0,0.00031947]
[1610087999196,3.1314,38463.0,38441.0,0.13632608]
[1610087999695,3.1314,38463.0,38442.0,0.00031939]
[1610087999894,3.1314,38463.0,38442.0,0.07847939]
[1610088000095,3.1314,38463.0,38443.0,0.00031939]
[1610088001194,0.13632608,38444.0,38443.0,0.00031939]
[1610088002196,0.13632608,38444.0,38434.0,0.11229]
[1610088002398,0.13632608,38444.0,38426.0,0.00063894]
[1610088002696,0.13632608,38444.0,38435.0,0.03220565]
[1610088002998,0.13632608,38444.0,38426.0,0.00063894]
[1610088002999,0.64292608,38444.0,38436.0,0.03220708]
[1610088003197,0.13632608,38437.0,38436.0,0.03220708]
[1610088003398,0.69952608,38437.0,38428.0,0.00031195]
[1610088003599,0.69952608,38437.0,38436.0,0.03220224]
[1610088003797,0.69952608,38437.0,38429.0,0.00031206]
[1610088004198,0.69952608,38437.0,38436.0,0.03221042]
[1610088004400,0.69952608,38437.0,38433.0,0.12668]
[1610088004599,0.69952608,38437.0,38436.0,0.03221189]
[1610088005100,0.69952608,38437.0,38436.0,0.00031206]
[1610088005400,0.69952608,38437.0,38435.0,0.00031206]
[1610088005602,0.69952608,38437.0,38436.0,0.00031206]
[1610088006000,0.69952608,38437.0,38434.0,0.03221177]
[1610088006200,0.69952608,38437.0,38436.0,0.00031208]
[1610088006400,0.69952608,38437.0,38435.0,0.00031208]
[1610088006700,0.69952608,38437.0,38434.0,0.03221177]
[1610088007002,0.69952608,38437.0,38436.0,0.00031208]
[1610088007209,0.69952608,38437.0,38435.0,0.0003121]
[1610088007601,0.69952608,38437.0,38434.0,0.03221179]
[1610088007802,0.13632608,38437.0,38436.0,0.00031213]
[1610088008002,0.13632608,38437.0,38435.0,0.00031213]
[1610088008402,0.13632608,38437.0,38436.0,0.00031213]
[1610088008804,0.13632608,38437.0,38434.0,0.03221182]
[1610088009205,0.13632608,38437.0,38436.0,0.00031215]
[1610088009407,0.13632608,38437.0,38433.0,0.12668]
[1610088009605,0.13632608,38437.0,38426.0,0.00063894]
[1610088009805,4.2465,38434.0,38426.0,0.00063894]
[1610088010105,4.2465,38434.0,38427.0,0.00031217]
[1610088010506,4.2465,38434.0,38426.0,0.03286069]
[1610088010709,4.2465,38434.0,38428.0,0.00031217]
[1610088010907,4.2465,38434.0,38427.0,0.03222405]
[1610088011109,0.13632608,38428.0,38427.0,0.03222405]
[1610088011309,0.57182608,38428.0,38427.0,0.03191186]
[1610088011513,0.57182608,38428.0,38427.0,0.00031219]
[1610088011710,0.13632608,38428.0,38360.0,0.1569]
[1610088012110,3.44652608,38428.0,38427.0,0.03191541]
[1610088012314,3.44652608,38428.0,38387.0,3.9799]
[1610088012510,3.44652608,38428.0,38427.0,0.03223193]
[1610088012811,3.44652608,38428.0,38409.0,0.08693]
[1610088013010,3.44652608,38428.0,38410.0,0.03223317]
[1610088013212,0.09498,38436.0,38410.0,0.03223317]
[1610088013411,4.0028,38435.0,38410.0,0.03223317]
[1610088014713,4.0028,38435.0,38394.0,0.09607751]
[1610088014914,4.0028,38435.0,38411.0,0.03192264]
[1610088015114,0.13632608,38412.0,38400.0,0.13632608]
[1610088015715,0.13632608,38412.0,38401.0,0.03222956]
[1610088016315,0.13632608,38412.0,38401.0,0.03191732]
[1610088016516,0.13632608,38412.0,38402.0,0.0003122]
[1610088016717,0.13632608,38412.0,38401.0,0.03222952]
[1610088017016,0.13632608,38412.0,38403.0,0.0003122]
[1610088017217,0.13632608,38404.0,38400.0,0.03222627]
[1610088017717,0.13632608,38404.0,38401.0,0.00031222]
[1610088018020,0.13632608,38404.0,38400.0,0.03222629]
[1610088018419,0.13632608,38404.0,38402.0,0.00031222]
[1610088018619,0.13632608,38404.0,38401.0,0.00031224]
[1610088018820,0.13632608,38404.0,38403.0,0.00031224]
[1610088019220,0.13632608,38404.0,38402.0,0.00031224]
[1610088019420,0.13632608,38404.0,38403.0,0.00031224]
[1610088019924,0.13632608,38404.0,38400.0,0.03222631]
[1610088020121,0.13632608,38404.0,38403.0,0.00031224]
[1610088020522,0.13632608,38404.0,38399.0,0.11692]
[1610088020724,0.13632608,38404.0,38403.0,0.00031225]
[1610088020924,0.13632608,38404.0,38403.0,0.10466]
[1610088021328,0.13632608,38404.0,38403.0,0.10497225]
[1610088021522,0.13632608,38404.0,38403.0,0.13689534]
[1610088022924,4.12582608,38404.0,38403.0,0.13689534]
[1610088024724,0.13632608,38404.0,38403.0,0.13689534]
[1610088042150,0.2941,38427.0,38403.0,0.13689534]
[1610088042451,0.2941,38427.0,38404.0,0.03222668]
[1610088042851,0.56495404,38437.0,38404.0,0.03222668]
[1610088043053,0.56527562,38438.0,38404.0,0.03222668]
[1610088043253,0.56527562,38438.0,38409.0,0.13632608]
[1610088043453,0.56527562,38438.0,38410.0,3.1157]
[1610088043753,0.56584081,38439.0,38411.0,0.19178308]
[1610088044054,0.56584081,38439.0,38411.0,0.31804308]
[1610088044555,0.56584081,38439.0,38412.0,0.03222401]
[1610088045254,0.56655833,38440.0,38414.0,0.13632608]
[1610088045554,0.56668721,38439.0,38414.0,0.13632608]
[1610088045856,0.56668721,38439.0,38415.0,0.03222317]
[1610088046454,0.5667518,38438.0,38415.0,0.03222317]
[1610088046656,0.5667518,38438.0,38412.0,0.03222419]
[1610088047056,0.5667518,38438.0,38416.0,0.03222265]
[1610088047259,0.5667518,38438.0,38413.0,0.03222399]
[1610088047260,0.13632608,38417.0,38413.0,0.03222399]
[1610088047556,0.13632608,38417.0,38411.0,0.12626]
[1610088047756,0.13632608,38417.0,38414.0,0.06445302]
[1610088047956,0.13632608,38417.0,38414.0,0.0322265]
[1610088048155,0.13632608,38417.0,38412.0,0.03222671]
[1610088048356,0.13632608,38417.0,38415.0,0.03222677]
[1610088048655,0.13632608,38417.0,38413.0,0.03222715]
[1610088048956,0.13632608,38417.0,38416.0,0.03222765]
[1610088049157,0.13632608,38417.0,38412.0,0.03222765]
[1610088049457,0.13632608,38413.0,38411.0,0.12626]
[1610088049656,0.13632608,38413.0,38403.0,0.10466]
[1610088049856,0.13632608,38413.0,38404.0,0.03222819]
[1610088050256,0.13632608,38413.0,38403.0,0.15923891]
[1610088050459,0.13632608,38413.0,38405.0,0.03222878]
[1610088050655,0.13632608,38413.0,38404.0,0.0322287]
[1610088050856,0.13632608,38413.0,38406.0,0.03222863]
[1610088051156,0.13632608,38413.0,38405.0,0.03222839]
[1610088051457,0.13632608,38406.0,38403.0,0.12701]
[1610088051660,0.13632608,38406.0,38405.0,0.03222935]
[1610088051958,0.13632608,38406.0,38404.0,0.03222924]
[1610088052358,0.13632608,38406.0,38405.0,0.0322289]
[1610088052559,0.13632608,38406.0,38405.0,0.0322285]
[1610088052760,0.13632608,38406.0,38404.0,0.03222819]
[1610088052962,0.13632608,38406.0,38405.0,0.03222852]
[1610088053362,0.13632608,38406.0,38404.0,0.03222917]
[1610088053560,0.13632608,38406.0,38405.0,0.03222917]
[1610088054060,0.13632608,38406.0,38404.0,0.0322294]
[1610088054460,0.13632608,38406.0,38403.0,0.12701]
[1610088054663,0.13632608,38406.0,38405.0,0.03223033]
[1610088055063,0.13632608,38406.0,38405.0,0.06446167]
[1610088056564,0.13632608,38406.0,38405.0,0.03223033]
[1610088056766,0.13632608,38406.0,38405.0,0.06446191]
[1610088056964,0.13632608,38406.0,38405.0,0.03223033]
[1610088057164,0.13632608,38406.0,38405.0,0.06446173]
[1610088067476,0.52867345,38406.0,38405.0,0.06446173]
[1610088071879,0.52867345,38406.0,38405.0,0.0322314]
[1610088072180,0.52867345,38406.0,38404.0,0.03223652]
[1610088072581,0.52867345,38406.0,38405.0,0.03223665]
[1610088072982,0.52867345,38406.0,38404.0,0.03223691]
[1610088073182,0.52867345,38406.0,38405.0,0.03223673]
[1610088073583,0.52867345,38406.0,38404.0,0.03223722]
[1610088073784,0.52867345,38406.0,38405.0,0.03223706]
[1610088074186,4.51937345,38406.0,38405.0,0.03223706]
[1610088074485,6.01937345,38406.0,38405.0,0.03223988]
[1610088074686,6.01937345,38406.0,38395.0,0.10906]
[1610088075087,6.01937345,38406.0,38396.0,0.03224442]
[1610088075286,0.13632608,38397.0,38396.0,0.03224442]
[1610088089402,0.13632608,38397.0,38396.0,0.1685705]
[1610088089604,0.39234737,38406.0,38396.0,0.1685705]
[1610088090103,0.39234737,38406.0,38397.0,0.03223924]
[1610088091603,0.39234737,38406.0,38403.0,0.21454608]
[1610088091807,0.39234737,38406.0,38404.0,0.03223639]
[1610088093510,0.13632608,38405.0,38404.0,0.03223639]
[1610088096111,0.39234737,38406.0,38404.0,0.03223639]
[1610088097314,0.39234737,38406.0,38405.0,0.03223256]
[1610088097516,0.39234737,38406.0,38405.0,0.16855864]
[1610088097714,0.39234737,38406.0,38405.0,0.13632608]
[1610088097915,0.39234737,38406.0,38405.0,0.1685575]
[1610088100120,0.13632608,38425.0,38405.0,0.1685575]
[1610088100520,0.13632608,38425.0,38406.0,0.03222218]
[1610088100723,0.13632608,38425.0,38414.0,3.0088]
[1610088100922,0.13632608,38425.0,38414.0,3.09881]
[1610088101124,0.13632608,38425.0,38415.0,0.19177577]
[1610088101523,0.57116484,38438.0,38418.0,0.13632608]
[1610088101922,0.57098149,38437.0,38419.0,0.0322223]
[1610088102324,0.57098149,38437.0,38415.0,0.03222395]
[1610088102325,0.57100431,38434.0,38415.0,0.03222395]
[1610088102523,0.57100431,38434.0,38415.0,3.44122395]
[1610088102726,0.57091029,38433.0,38420.0,0.03222432]
[1610088102925,0.57091029,38433.0,38416.0,0.19179275]
[1610088103526,0.13632608,38417.0,38416.0,0.19179275]
[1610088104026,0.13632608,38417.0,38415.0,0.03222454]
[1610088104227,0.13632608,38417.0,38416.0,0.03222452]
[1610088104827,0.13632608,38417.0,38415.0,0.03222328]
[1610088105026,0.13632608,38417.0,38416.0,0.03222262]
[1610088105526,0.13632608,38417.0,38416.0,0.13632608]
[1610088105726,0.13632608,38417.0,38416.0,0.16854959]
[1610088109029,0.13632608,38417.0,38416.0,0.03222351]
[1610088109430,0.13632608,38417.0,38415.0,0.03222463]
[1610088109630,0.13632608,38417.0,38416.0,0.00031099]
[1610088109829,0.13632608,38417.0,38416.0,0.03222641]
[1610088110030,0.13632608,38417.0,38415.0,0.03222836]
[1610088110329,0.13632608,38417.0,38416.0,0.03222946]
[1610088110730,0.13632608,38417.0,38404.0,0.03223359]
[1610088111031,1.63632608,38417.0,38416.0,0.03223534]
[1610088111231,1.63632608,38417.0,38405.0,0.03223531]
[1610088111431,0.13632608,38406.0,38405.0,0.03223531]
[1610088111632,0.13632608,38406.0,38404.0,0.0322358]
[1610088111829,0.5521,38405.0,38395.0,0.26869078]
[1610088112431,0.5521,38405.0,38404.0,0.03224046]
[1610088112630,0.5521,38405.0,38396.0,0.0322399]
[1610088112831,0.5521,38405.0,38404.0,0.0322399]
[1610088113133,0.5521,38405.0,38397.0,0.03223941]
[1610088113330,0.5521,38405.0,38404.0,0.03223842]
[1610088113732,0.5521,38405.0,38398.0,0.03223941]
[1610088113930,0.5521,38405.0,38404.0,0.03223997]
[1610088114132,0.5521,38405.0,38396.0,0.03223912]
[1610088114531,0.5521,38405.0,38404.0,0.03223874]
[1610088114733,0.5521,38405.0,38397.0,0.03223857]
[1610088114932,0.5521,38405.0,38396.0,0.03223894]
[1610088115334,0.5521,38405.0,38398.0,0.03223916]
[1610088115534,0.5521,38405.0,38395.0,0.26869078]
[1610088115535,0.13632608,38399.0,38397.0,0.03223926]
[1610088115737,0.13632608,38399.0,38396.0,0.03223926]
[1610088115936,0.13632608,38399.0,38398.0,0.03223921]
[1610088116337,0.13632608,38399.0,38397.0,0.0322391]
[1610088116536,0.13632608,38399.0,38398.0,0.03223938]
[1610088116836,0.13632608,38399.0,38395.0,0.26869078]
[1610088117037,0.13632608,38399.0,38398.0,0.03224075]
[1610088117337,0.13632608,38399.0,38395.0,0.26869078]
[1610088117338,3.60222608,38399.0,38396.0,0.03224138]
[1610088117537,3.60222608,38399.0,38398.0,0.03224294]
[1610088117838,3.60222608,38399.0,38397.0,0.03224322]
[1610088118039,3.60222608,38399.0,38398.0,0.03224322]
[1610088118439,5.10222608,38399.0,38396.0,0.03224377]
[1610088118638,5.10222608,38399.0,38398.0,0.03224389]
[1610088118844,5.10222608,38399.0,38397.0,0.03224485]
[1610088119041,1.63632608,38399.0,38397.0,0.03224485]
[1610088119241,1.63632608,38399.0,38398.0,0.03224544]
[1610088119441,5.85852608,38399.0,38398.0,0.03224544]
[1610088119642,5.85852608,38399.0,38395.0,0.10906]
[1610088119643,5.85852608,38399.0,38396.0,0.03224682]
[1610088120042,5.85852608,38399.0,38398.0,0.03224686]
[1610088120244,5.85852608,38399.0,38397.0,0.03224708]
[1610088120443,5.85852608,38399.0,38398.0,0.03224762]
[1610088120943,5.85852608,38399.0,38396.0,0.03224865]
[1610088121244,0.13632608,38399.0,38398.0,0.03224922]
[1610088121547,1.5,38398.0,38387.0,0.11739]
[1610088121745,1.5,38398.0,38396.0,0.03225055]
[1610088121945,1.5,38398.0,38396.0,0.03193933]
[1610088122245,1.5,38398.0,38397.0,0.03225051]
[1610088122544,1.5,38398.0,38388.0,0.03225071]
[1610088122744,1.5,38398.0,38397.0,0.00031122]
[1610088123044,1.5,38398.0,38388.0,0.03225104]
[1610088123344,1.5,38398.0,38397.0,0.03225081]
[1610088123545,1.5,38398.0,38389.0,0.03225048]
[1610088123744,3.57092608,38399.0,38389.0,0.03225048]
[1610088123944,3.57092608,38399.0,38388.0,0.03225025]
[1610088124147,3.57092608,38399.0,38390.0,0.0322505]
[1610088124444,1.5,38398.0,38389.0,0.03225033]
[1610088124744,1.5,38398.0,38391.0,0.03225014]
[1610088124944,1.5,38398.0,38390.0,0.03224974]
[1610088125145,1.5,38398.0,38392.0,0.03224944]
[1610088125344,3.57092608,38399.0,38392.0,0.00031049]
[1610088125545,0.13632608,38393.0,38391.0,0.03224929]
[1610088125744,0.13632608,38393.0,38387.0,0.11739]
[1610088125946,0.13632608,38393.0,38392.0,0.03224969]
[1610088126145,0.13632608,38393.0,38392.0,0.00031048]
[1610088126346,0.13632608,38393.0,38388.0,0.03224865]
[1610088126648,0.13632608,38393.0,38392.0,0.00031044]
[1610088126847,0.13632608,38393.0,38389.0,0.00031042]